bitfinex-derivatives/quotes_BTCF0:USTF0_20250711
["timestamp","ask_amount","ask_price","bid_price","bid_amount"]
[1752252774464,0.0032,117530.0,117520.0,1.47880489]
[1752252774656,0.0159716,117550.0,117540.0,0.2026388]
[1752252774856,0.0159716,117550.0,117540.0,0.71152854]
[1752252775163,0.44776134,117550.0,117540.0,0.3099188]
[1752252776158,0.44876134,117550.0,117540.0,0.3099188]
[1752252776558,0.0471516,117550.0,117540.0,0.3099188]
[1752252777860,0.0471516,117550.0,117540.0,0.29608434]
[1752252778261,0.20015476,117550.0,117540.0,0.29608434]
[1752252778666,1.1787589,117550.0,117540.0,0.29608434]
[1752252778868,1.0086945,117550.0,117540.0,0.29608434]
[1752252779068,0.85569134,117550.0,117540.0,0.29608434]
[1752252779263,0.4540816,117550.0,117540.0,0.29608434]
[1752252779566,0.49489134,117550.0,117540.0,0.29608434]
[1752252779960,0.66495574,117550.0,117540.0,0.29618434]
[1752252780667,0.49489134,117550.0,117540.0,0.29618434]
[1752252781067,0.44876134,117550.0,117540.0,0.29618434]
[1752252781269,0.0471516,117550.0,117540.0,0.69779408]
[1752252781466,0.0169716,117550.0,117540.0,0.69779408]
[1752252782064,0.001,117550.0,117540.0,1.05859408]
[1752252782765,0.001,117550.0,117540.0,0.67499056]
[1752252785871,0.50160172,117550.0,117540.0,1.29151056]
[1752252786266,0.67166612,117550.0,117540.0,0.67499056]
[1752252786473,0.73401404,117550.0,117540.0,0.93067056]
[1752252786673,0.73401404,117550.0,117540.0,0.89967056]
[1752252786867,0.79631404,117550.0,117540.0,0.28319056]
[1752252787073,1.15711404,117550.0,117540.0,0.22845088]
[1752252787470,1.77383404,117550.0,117540.0,0.24654524]
[1752252787975,1.77383404,117550.0,117540.0,0.18827326]
[1752252788476,2.01823211,117550.0,117540.0,0.18827326]
[1752252788877,2.21716425,117550.0,117540.0,0.18827326]
[1752252790575,1.97276618,117550.0,117540.0,0.18827326]
[1752252790776,1.35604618,117550.0,117540.0,0.18827326]
[1752252790972,1.50178446,117550.0,117540.0,0.18827326]
[1752252791177,1.97220618,117550.0,117540.0,0.26613326]
[1752252791384,1.97240618,117550.0,117540.0,0.26633326]
[1752252791983,2.12544378,117550.0,117540.0,0.26633326]
[1752252792482,1.92651164,117550.0,117540.0,0.26633326]
[1752252793283,1.31035164,117550.0,117540.0,0.26633326]
[1752252793483,1.92599164,117550.0,117540.0,0.26633326]
[1752252793682,0.83992992,117550.0,117540.0,0.29763326]
[1752252793883,1.45556992,117550.0,117540.0,0.33003326]
[1752252794384,0.63816552,117550.0,117540.0,0.33003326]
[1752252794577,0.24676552,117550.0,117540.0,0.33003326]
[1752252794781,0.86224552,117550.0,117540.0,0.33003326]
[1752252794987,0.41682992,117550.0,117540.0,0.33003326]
[1752252795277,1.09501404,117550.0,117540.0,0.33003326]
[1752252796782,1.24805164,117550.0,117540.0,0.33003326]
[1752252797283,0.77762992,117550.0,117540.0,0.33003326]
[1752252797486,1.24805164,117550.0,117540.0,0.33003326]
[1752252797784,1.07798724,117550.0,117540.0,0.33003326]
[1752252797983,1.24805164,117550.0,117540.0,0.33003326]
[1752252798186,0.77762992,117550.0,117540.0,0.33003326]
[1752252798381,1.06996792,117550.0,117540.0,0.33003326]
[1752252798580,0.40839792,117550.0,117540.0,0.33003326]
[1752252798775,0.04759792,117550.0,117540.0,0.67699837]
[1752252799286,0.15708132,117550.0,117540.0,0.67699837]
[1752252799487,0.15708132,117550.0,117540.0,0.31619837]
[1752252799488,0.18901132,117550.0,117540.0,0.31619837]
[1752252801589,0.67645984,117550.0,117540.0,0.31619837]
[1752252801784,0.72471984,117550.0,117540.0,0.31619837]
[1752252802685,1.08551984,117550.0,117540.0,0.31619837]
[1752252802885,1.01662031,117550.0,117540.0,0.29683008]
[1752252803190,0.84655591,117550.0,117540.0,0.29683008]
[1752252803491,0.99722805,117550.0,117540.0,0.29683008]
[1752252803887,0.59570586,117550.0,117540.0,0.29683008]
[1752252804086,0.19893214,117550.0,117540.0,0.29663008]
[1752252805589,0.60045433,117550.0,117540.0,0.29663008]
[1752252805789,1.82126903,117560.0,117550.0,0.2028844]
[1752252805990,1.82126903,117560.0,117550.0,0.3127244]
[1752252806191,1.47833903,117560.0,117550.0,0.3127244]
[1752252806491,1.83913903,117560.0,117550.0,0.3127244]
[1752252807000,1.64020689,117560.0,117550.0,0.3127244]
[1752252807791,1.79334241,117560.0,117550.0,0.2805244]
[1752252807993,1.82624241,117560.0,117550.0,0.2151044]
[1752252808195,2.2277646,117560.0,117550.0,0.2151044]
[1752252808391,1.6125246,117560.0,117550.0,0.2151044]
[1752252808895,2.2273646,117560.0,117550.0,0.20127012]
[1752252809389,1.6125246,117560.0,117550.0,0.20127012]
[1752252809595,2.2273246,117560.0,117550.0,0.20127012]
[1752252809895,1.82580241,117560.0,117550.0,0.20127012]
[1752252810398,1.82580241,117560.0,117550.0,0.23409012]
[1752252812598,1.21100241,117560.0,117550.0,0.23409012]
[1752252812802,1.82516241,117560.0,117550.0,0.23409012]
[1752252813400,1.67202689,117560.0,117550.0,0.23409012]
[1752252814003,0.1986644,117550.0,117540.0,0.30831736]
[1752252814203,1.04005659,117550.0,117540.0,0.27571736]
[1752252814599,1.04005659,117550.0,117540.0,0.257623]
[1752252814800,1.04005659,117550.0,117540.0,0.25634849]
[1752252815003,1.19319211,117550.0,117540.0,0.28916849]
[1752252815302,1.19319211,117550.0,117540.0,0.31986849]
[1752252816202,0.83239211,117550.0,117540.0,0.31986849]
[1752252816398,0.43086992,117550.0,117540.0,0.31986849]
[1752252816602,0.83239211,117550.0,117540.0,0.31986849]
[1752252816803,1.44555211,117550.0,117540.0,0.31986849]
[1752252817003,1.80635211,117550.0,117540.0,0.31986849]
[1752252817204,1.19319211,117550.0,117540.0,0.31986849]
[1752252817405,1.80635211,117550.0,117540.0,0.31986849]
[1752252818005,1.80635211,117550.0,117540.0,0.25634849]
[1752252818206,1.29241659,117550.0,117540.0,0.2151189]
[1752252818407,0.2165633,117530.0,117520.0,0.24665517]
[1752252818606,1.59228549,117530.0,117520.0,0.24665517]
[1752252818807,1.65598549,117530.0,117520.0,0.24665517]
[1752252819108,0.2165778,117520.0,117510.0,0.36437]
[1752252819306,1.01119999,117520.0,117510.0,0.2903399]
[1752252819604,1.04259999,117520.0,117510.0,0.2580099]
[1752252820510,1.04259999,117520.0,117510.0,0.2610099]
[1752252820705,1.04279999,117520.0,117510.0,0.2612099]
[1752252821010,1.44432218,117520.0,117510.0,0.1723223]
[1752252821208,1.44432218,117520.0,117510.0,0.2176823]
[1752252821911,1.04279999,117520.0,117510.0,0.04556]
[1752252822210,1.44432218,117520.0,117510.0,0.2156823]
[1752252822410,1.45278667,117520.0,117510.0,0.2156823]
[1752252822600,1.45278667,117520.0,117510.0,0.0002]
[1752252823007,1.45278667,117520.0,117510.0,0.1704223]
[1752252823611,1.45278667,117520.0,117510.0,0.0003]
[1752252824111,1.45278667,117520.0,117510.0,0.1704223]
[1752252824317,1.45278667,117520.0,117510.0,0.0003]
[1752252825307,1.45278667,117520.0,117510.0,0.1704223]
[1752252825814,1.45278667,117520.0,117510.0,0.0003]
[1752252827910,1.60592219,117520.0,117510.0,0.0003]
[1752252829520,0.80287781,117520.0,117510.0,0.0003]
[1752252829719,2.21924219,117520.0,117510.0,0.0003]
[1752252829913,2.28666704,117520.0,117510.0,0.0003]
[1752252830314,2.28666704,117520.0,117510.0,0.00015938]
[1752252830516,2.28646704,117520.0,117510.0,0.00015938]
[1752252832119,1.67314704,117520.0,117510.0,0.00015938]
[1752252832420,2.28618704,117520.0,117510.0,0.00015938]
[1752252832817,2.13305152,117520.0,117510.0,0.00015938]
[1752252833017,2.13305152,117520.0,117510.0,0.04551938]
[1752252833218,2.28572695,117520.0,117510.0,0.04551938]
[1752252833921,2.13305152,117520.0,117510.0,0.04551938]
[1752252834520,1.33000714,117520.0,117510.0,0.04551938]
[1752252834818,2.13305152,117520.0,117510.0,0.04551938]
[1752252835420,2.13305152,117520.0,117510.0,0.00015938]
[1752252836517,2.13305152,117520.0,117510.0,0.04551938]
[1752252837723,2.23987572,117520.0,117510.0,0.04551938]
[1752252838623,2.23991572,117520.0,117510.0,0.04551938]
[1752252838924,1.26603572,117520.0,117510.0,0.21564158]
[1752252839123,1.26603572,117520.0,117510.0,0.24797158]
[1752252839124,1.69880419,117520.0,117510.0,0.24797158]
[1752252839422,1.69880419,117520.0,117510.0,0.31207158]
[1752252840520,1.70745056,117520.0,117510.0,0.31207158]
[1752252842722,0.4962242,117520.0,117510.0,0.31207158]
[1752252842922,0.1068242,117520.0,117510.0,0.71359377]
[1752252843119,0.7199042,117520.0,117510.0,1.07439377]
[1752252843524,0.61308,117520.0,117510.0,1.07439377]
[1752252843924,1.0781943,117530.0,117520.0,0.1701078]
[1752252844114,1.0781943,117530.0,117520.0,0.2477978]
[1752252844320,1.1067943,117530.0,117520.0,0.3120978]
[1752252844516,1.7198743,117530.0,117520.0,0.3120978]
[1752252844921,1.7377443,117530.0,117520.0,0.3120978]
[1752252845723,1.6952189,117530.0,117520.0,0.3120978]
[1752252845923,1.5923001,117530.0,117520.0,0.3120978]
[1752252846232,1.59225,117530.0,117520.0,0.3120978]
[1752252848625,0.95061,117530.0,117520.0,0.3120978]
[1752252848827,0.01819451,117530.0,117520.0,0.71361999]
[1752252849026,0.01819451,117530.0,117520.0,1.07441999]
[1752252849738,0.01819451,117530.0,117520.0,0.6728978]
[1752252850033,0.01819451,117530.0,117520.0,1.07441999]
[1752252850234,0.01819451,117530.0,117520.0,1.07641999]
[1752252850734,0.01819451,117530.0,117520.0,0.6748978]
[1752252851033,0.01819451,117530.0,117520.0,0.6758978]
[1752252852938,0.01819451,117530.0,117520.0,1.07741999]
[1752252853139,0.01839451,117530.0,117520.0,1.07761999]
[1752252855242,0.18848781,117530.0,117520.0,1.07761999]
[1752252856044,0.01839451,117530.0,117520.0,1.07761999]
[1752252857244,0.61861,117530.0,117520.0,0.67979032]
[1752252858534,0.18848781,117530.0,117520.0,0.67979032]
[1752252859147,0.18848781,117530.0,117520.0,1.29267032]
[1752252859348,0.01839451,117530.0,117520.0,1.29267032]
[1752252861342,0.01839451,117530.0,117520.0,1.69419251]
[1752252861747,0.18848781,117530.0,117520.0,1.69419251]
[1752252862249,0.01839451,117530.0,117520.0,1.29267032]
[1752252862949,0.18848781,117530.0,117520.0,1.29267032]
[1752252863150,0.01839451,117530.0,117520.0,1.29267032]
[1752252864349,0.01839451,117530.0,117520.0,1.69419251]
[1752252864748,0.01839451,117530.0,117520.0,1.29267032]
[1752252866146,0.18848781,117530.0,117520.0,1.29259032]
[1752252866549,0.21708781,117530.0,117520.0,1.29259032]
[1752252866750,0.04699451,117530.0,117520.0,1.29259032]
[1752252866949,0.21708781,117530.0,117520.0,1.29259032]
[1752252867140,0.04699451,117530.0,117520.0,1.29259032]
[1752252867345,0.01839451,117530.0,117520.0,1.29259032]
[1752252867649,0.18848781,117530.0,117520.0,1.29259032]
[1752252868050,0.01839451,117530.0,117520.0,1.29259032]
[1752252869651,0.18848781,117530.0,117520.0,1.29259032]
[1752252870053,0.01839451,117530.0,117520.0,1.29259032]
[1752252870852,0.01839451,117530.0,117520.0,1.69311251]
[1752252874152,0.01839451,117530.0,117520.0,1.29059032]
[1752252874355,0.01839451,117530.0,117520.0,1.69211251]
[1752252877357,0.0022,117530.0,117520.0,1.69211251]
[1752252882256,0.96321549,117530.0,117520.0,0.12881784]
[1752252882460,1.04548549,117530.0,117520.0,0.23516169]
[1752252882860,1.05388953,117530.0,117520.0,0.23516169]
[1752252883461,1.20656496,117530.0,117520.0,0.23516169]
[1752252884365,1.05388953,117530.0,117520.0,0.23516169]
[1752252887563,1.66644953,117530.0,117520.0,0.23516169]
[1752252888566,1.05388953,117530.0,117520.0,0.23516169]
[1752252888765,1.66644953,117530.0,117520.0,0.23516169]
[1752252889863,1.66644953,117530.0,117520.0,0.0002]
[1752252890066,1.66644953,117530.0,117520.0,0.1703078]
[1752252890266,1.66644953,117530.0,117520.0,0.2195678]
[1752252890567,1.05388953,117530.0,117520.0,0.2195678]
[1752252890768,1.05388953,117530.0,117520.0,0.2520378]
[1752252890968,1.66640953,117530.0,117520.0,0.2520378]
[1752252891172,1.05388953,117530.0,117520.0,0.2520378]
[1752252891468,0.0022,117530.0,117520.0,1.01435999]
[1752252891766,0.0022,117530.0,117520.0,1.04445999]
[1752252891965,0.0022,117530.0,117520.0,1.07475999]
[1752252892669,0.0022,117530.0,117520.0,1.14317048]
[1752252892870,0.0022,117530.0,117520.0,1.14417048]
[1752252893274,0.0022,117530.0,117520.0,1.07575999]
[1752252893572,0.0022,117530.0,117520.0,1.07675999]
[1752252893767,0.0022,117530.0,117520.0,0.6752378]
[1752252893968,0.0022,117530.0,117520.0,1.07675999]
[1752252894273,0.0022,117530.0,117520.0,0.6762378]
[1752252895471,0.002,117530.0,117520.0,0.662402]
[1752252895669,0.1720933,117530.0,117520.0,1.06392419]
[1752252895872,0.1720933,117530.0,117520.0,0.662402]
[1752252896869,0.57361549,117530.0,117520.0,0.662402]
[1752252897070,0.57361549,117530.0,117520.0,0.661402]
[1752252897565,0.57361549,117530.0,117520.0,0.300602]
[1752252897772,0.63594549,117530.0,117520.0,0.36824957]
[1752252897967,1.02734549,117530.0,117520.0,0.36724957]
[1752252898567,1.02734549,117530.0,117520.0,0.05026]
[1752252898774,1.05934549,117530.0,117520.0,0.001]
[1752252899473,1.05934549,117530.0,117520.0,0.2203678]
[1752252899673,1.05934549,117530.0,117520.0,0.05026]
[1752252899973,1.05934549,117530.0,117520.0,0.2203678]
[1752252900269,1.16650653,117530.0,117520.0,0.05026]
[1752252900673,1.05934549,117530.0,117520.0,0.05026]
[1752252900876,1.05934549,117530.0,117520.0,0.2193678]
[1752252901174,1.05934549,117530.0,117520.0,0.2518378]
[1752252901569,1.67170549,117530.0,117520.0,0.2518378]
[1752252905176,1.67170549,117530.0,117520.0,0.26949214]
[1752252905375,1.05934549,117530.0,117520.0,0.26949214]
[1752252905570,1.82434092,117530.0,117520.0,0.2556557]
[1752252906879,1.21202092,117530.0,117520.0,0.2556557]
[1752252907076,1.82430092,117530.0,117520.0,0.2556557]
[1752252907376,1.82430092,117530.0,117520.0,0.2882557]
[1752252907575,1.21202092,117530.0,117520.0,0.3193557]
[1752252907778,1.82430092,117530.0,117520.0,0.3193557]
[1752252907975,1.67162549,117530.0,117520.0,0.29998393]
[1752252908773,1.50975763,117530.0,117520.0,0.29998393]
[1752252908974,2.02364697,117530.0,117520.0,0.29998393]
[1752252909474,1.99164697,117530.0,117520.0,0.29998393]
[1752252909874,1.79271483,117530.0,117520.0,0.29998393]
[1752252910076,1.43191483,117530.0,117520.0,0.29998393]
[1752252910271,0.81963483,117530.0,117520.0,0.29998393]
[1752252910478,0.18570934,117530.0,117520.0,0.70150612]
[1752252910670,0.2027133,117530.0,117520.0,0.29998393]
[1752252910874,0.2519133,117530.0,117520.0,0.29998393]
[1752252911179,0.65343549,117530.0,117520.0,0.29998393]
[1752252911576,0.03262,117530.0,117520.0,0.66078393]
[1752252911782,0.002,117530.0,117520.0,1.06230612]
[1752252912380,0.15508934,117530.0,117520.0,1.06230612]
[1752252912680,0.15528934,117530.0,117520.0,1.06250612]
[1752252913077,0.0022,117530.0,117520.0,1.06250612]
[1752252914180,0.27944721,117530.0,117520.0,0.66098393]
[1752252914474,0.7121994,117530.0,117520.0,1.27314393]
[1752252914872,0.60504549,117530.0,117520.0,1.27314393]
[1752252915581,0.65424549,117530.0,117520.0,0.66098393]
[1752252915781,0.65424549,117530.0,117520.0,1.27314393]
[1752252916581,0.60504549,117530.0,117520.0,1.27314393]
[1752252916778,0.2035233,117530.0,117520.0,0.66098393]
[1752252916978,0.2035233,117530.0,117520.0,1.27310393]
[1752252917179,0.43495219,117530.0,117520.0,1.27310393]
[1752252917782,0.2035233,117530.0,117520.0,1.27310393]
[1752252918384,0.2035233,117530.0,117520.0,1.2592684]
[1752252918685,0.31067721,117530.0,117520.0,1.2592684]
[1752252918987,0.35987721,117530.0,117520.0,1.2592684]
[1752252919987,0.37632864,117530.0,117520.0,1.2592684]
[1752252920285,0.20623534,117530.0,117520.0,1.2592684]
[1752252920485,0.09908143,117530.0,117520.0,1.2592684]
[1752252920681,0.26917473,117530.0,117520.0,1.2592684]
[1752252921187,0.26917473,117530.0,117520.0,0.6471484]
[1752252921389,0.26917473,117530.0,117520.0,1.2591884]
[1752252922680,0.67069692,117530.0,117520.0,1.2591884]
[1752252923284,0.09908143,117530.0,117520.0,1.2591884]
[1752252923686,0.26917473,117530.0,117520.0,1.2591884]
[1752252925689,0.37632864,117530.0,117520.0,1.2591884]
[1752252926388,0.20623534,117530.0,117520.0,1.2591884]
[1752252926989,0.37632864,117530.0,117520.0,1.2591884]
[1752252927291,0.20623534,117530.0,117520.0,1.2591884]
[1752252927485,0.15703534,117530.0,117520.0,1.2591884]
[1752252928482,0.14058391,117530.0,117520.0,1.2591884]
[1752252928884,0.14058391,117530.0,117520.0,1.66071059]
[1752252929285,0.03343,117530.0,117520.0,1.66071059]
[1752252929789,0.2035233,117530.0,117520.0,1.66071059]
[1752252930083,0.03343,117530.0,117520.0,1.2591884]
[1752252930390,0.2035233,117530.0,117520.0,1.2591884]
[1752252931488,0.2035233,117530.0,117520.0,0.8983884]
[1752252931689,0.03343,117530.0,117520.0,0.8983884]
[1752252931890,0.03343,117530.0,117520.0,1.2591884]
[1752252932090,0.2035233,117530.0,117520.0,1.2591884]
[1752252932482,0.03343,117530.0,117520.0,0.8983884]
[1752252932688,0.0022,117530.0,117520.0,1.66071059]
[1752252933791,0.10935391,117530.0,117520.0,1.66071059]
[1752252935694,0.10935391,117530.0,117520.0,1.64687548]
[1752252937590,0.10935391,117530.0,117520.0,1.24535329]
[1752252937795,0.10935391,117530.0,117520.0,1.69651548]
[1752252937999,0.5108761,117530.0,117520.0,1.29499329]
[1752252938298,0.6809694,117530.0,117520.0,1.29499329]
[1752252938797,0.5108761,117530.0,117520.0,1.29499329]
[1752252939299,0.27944721,117530.0,117520.0,0.93419329]
[1752252940087,0.10935391,117530.0,117520.0,0.93419329]
[1752252941505,0.10935391,117530.0,117520.0,1.33571548]
[1752252941804,0.10935391,117530.0,117520.0,1.69651548]
[1752252942206,0.80972154,117550.0,117540.0,0.2505588]
[1752252942405,0.80972154,117550.0,117540.0,1.4737988]
[1752252942707,0.6566322,117550.0,117540.0,1.5383988]
[1752252942900,1.05815439,117550.0,117540.0,1.5383988]
[1752252943405,1.01563779,117550.0,117540.0,1.5383988]
[1752252945706,1.01563779,117550.0,117540.0,1.52456409]
[1752252945906,1.16872713,117550.0,117540.0,1.50519549]
[1752252946404,1.16872713,117550.0,117540.0,0.2835588]
[1752252946610,0.2533188,117540.0,117530.0,0.9896459]
[1752252946912,1.32906099,117540.0,117530.0,0.3781259]
[1752252947205,1.68986099,117540.0,117530.0,0.08048]
[1752252947406,0.1700933,117530.0,117520.0,0.60480141]
[1752252947612,1.04461235,117530.0,117520.0,0.64275541]
[1752252947804,1.09453235,117530.0,117520.0,0.64275541]
[1752252949005,0.73373235,117530.0,117520.0,0.64275541]
[1752252949211,1.09453235,117530.0,117520.0,0.64275541]
[1752252949417,1.09453235,117530.0,117520.0,0.60023081]
[1752252949601,1.09453235,117530.0,117520.0,0.48936391]
[1752252949911,1.24762169,117530.0,117520.0,0.39973611]
[1752252950311,1.24762169,117530.0,117520.0,0.56984391]
[1752252950715,1.09453235,117530.0,117520.0,0.56984391]
[1752252951007,1.09453235,117530.0,117520.0,0.27094391]
[1752252951808,0.04949686,117530.0,117520.0,1.2839061]
[1752252952108,0.12336072,117530.0,117520.0,1.3474061]
[1752252952613,0.12336072,117530.0,117520.0,1.7082061]
[1752252954015,0.12336072,117530.0,117520.0,1.30668391]
[1752252954207,0.12336072,117530.0,117520.0,1.7082061]
[1752252955112,0.29345402,117530.0,117520.0,1.30668391]
[1752252955315,0.29345402,117530.0,117520.0,1.7082061]
[1752252955514,0.12336072,117530.0,117520.0,1.7082061]
[1752252956212,0.12336072,117530.0,117520.0,1.7072061]
[1752252956612,0.29345402,117530.0,117520.0,1.7072061]
[1752252956815,0.29345402,117530.0,117520.0,1.7082061]
[1752252957016,0.29345402,117530.0,117520.0,2.0081061]
[1752252957710,0.27727716,117530.0,117520.0,2.0081061]
[1752252958016,0.1700933,117530.0,117520.0,2.0081061]
[1752252958714,0.32318264,117530.0,117520.0,2.0081061]
[1752252958916,0.32338264,117530.0,117520.0,2.0083061]
[1752252959417,0.32338264,117530.0,117520.0,2.0073061]
[1752252959611,0.1702933,117530.0,117520.0,1.60578391]
[1752252960417,0.0002,117530.0,117520.0,1.60578391]
[1752252961018,0.1702933,117530.0,117520.0,1.60578391]
[1752252961819,0.1702933,117530.0,117520.0,1.60588391]
[1752252962015,0.32338264,117530.0,117520.0,1.60588391]
[1752252962818,0.32338264,117530.0,117520.0,2.0074061]
[1752252963014,0.32338264,117530.0,117520.0,1.7075061]
[1752252963614,0.1702933,117530.0,117520.0,1.7075061]
[1752252964519,0.32338264,117530.0,117520.0,1.7075061]
[1752252965217,0.32338264,117530.0,117520.0,1.69367102]
[1752252965416,0.1702933,117530.0,117520.0,1.69367102]
[1752252965820,0.1702933,117530.0,117520.0,1.29214883]
[1752252966914,0.1702933,117530.0,117520.0,1.69367102]
[1752252967320,0.0002,117530.0,117520.0,1.69367102]
[1752252967920,0.10736559,117530.0,117520.0,1.69367102]
[1752252968121,0.27745889,117530.0,117520.0,1.69367102]
[1752252969120,0.1702933,117530.0,117520.0,1.69367102]
[1752252970222,0.1702933,117530.0,117520.0,1.29214883]
[1752252970425,0.0002,117530.0,117520.0,1.29214883]
[1752252970925,0.1702933,117530.0,117520.0,1.29214883]
[1752252971924,0.1702933,117530.0,117520.0,1.90282883]
[1752252974330,0.27745889,117530.0,117520.0,1.90282883]
[1752252974827,0.70927108,117530.0,117520.0,1.90282883]
[1752252975029,0.75522108,117530.0,117520.0,0.93086883]
[1752252975425,1.13199074,117530.0,117520.0,0.07246543]
[1752252975627,1.08632515,117530.0,117520.0,0.68338543]
[1752252975822,1.08632515,117530.0,117520.0,0.24257323]
[1752252976227,1.69724515,117530.0,117520.0,0.24257323]
[1752252976729,1.69924515,117530.0,117520.0,0.24257323]
[1752252977130,1.69924515,117530.0,117520.0,0.27587323]
[1752252977332,1.08832515,117530.0,117520.0,0.27587323]
[1752252977528,1.08832515,117530.0,117520.0,0.30747323]
[1752252978935,1.05802515,117530.0,117520.0,0.30747323]
[1752252979433,1.05802515,117530.0,117520.0,0.27587323]
[1752252979629,1.19529067,117530.0,117520.0,0.27587323]
[1752252980835,1.19529067,117530.0,117520.0,0.1704078]
[1752252982035,1.08812515,117530.0,117520.0,0.1704078]
[1752252982335,1.08812515,117530.0,117520.0,0.0003]
[1752252982536,1.08812515,117530.0,117520.0,0.1704078]
[1752252983634,0.32580296,117530.0,117520.0,0.2464578]
[1752252983937,1.08812515,117530.0,117520.0,0.2464578]
[1752252984542,0.72732515,117530.0,117520.0,0.2464578]
[1752252984838,1.08812515,117530.0,117520.0,0.2464578]
[1752252985038,1.08812515,117530.0,117520.0,0.2773578]
[1752252985339,1.08792515,117530.0,117520.0,0.28144276]
[1752252986341,1.24101449,117530.0,117520.0,0.28144276]
[1752252987943,1.08792515,117530.0,117520.0,0.28144276]
[1752252989246,0.68640296,117530.0,117520.0,0.28144276]
[1752252989440,1.08792515,117530.0,117520.0,0.28144276]
[1752252990038,1.02662515,117530.0,117520.0,0.31344276]
[1752252990239,0.66582515,117530.0,117520.0,0.31344276]
[1752252990537,1.27646515,117530.0,117520.0,0.31344276]
[1752252991441,0.87494296,117530.0,117520.0,0.31344276]
[1752252991644,1.27646515,117530.0,117520.0,0.31344276]
[1752252992446,0.09420966,117530.0,117520.0,0.71496495]
[1752252992745,0.26430296,117530.0,117520.0,0.31344276]
[1752252992944,0.66582515,117530.0,117520.0,0.31344276]
[1752252993446,0.26430296,117530.0,117520.0,0.31344276]
[1752252993642,0.01796966,117530.0,117520.0,1.07576495]
[1752252994439,0.01796966,117530.0,117520.0,0.67424276]
[1752252994639,0.04825966,117530.0,117520.0,0.67424276]
[1752252994839,0.09420966,117530.0,117520.0,0.67424276]
[1752252997153,0.09420966,117530.0,117520.0,0.66040739]
[1752252997446,0.20131955,117530.0,117520.0,0.66040739]
[1752252997743,0.12507955,117530.0,117520.0,1.06192958]
[1752252998138,0.01796966,117530.0,117520.0,1.06192958]
[1752252998342,0.171059,117530.0,117520.0,1.06192958]
[1752252999347,0.01796966,117530.0,117520.0,1.06192958]
[1752253000250,0.002,117530.0,117520.0,1.06192958]
[1752253001047,0.002,117530.0,117520.0,0.66040739]
[1752253001252,0.002,117530.0,117520.0,1.06192958]
[1752253002052,0.002,117530.0,117520.0,1.06292958]
[1752253002254,0.0022,117530.0,117520.0,1.06312958]
[1752253007056,0.00933298,117530.0,117520.0,1.93452777]
[1752253007257,0.2933614,117550.0,117540.0,0.1584547]
[1752253007564,0.69488359,117550.0,117540.0,1.75748775]
[1752253007860,0.69488359,117550.0,117540.0,1.82188775]
[1752253008461,0.69488359,117550.0,117540.0,1.78998775]
[1752253008759,0.69488359,117550.0,117540.0,1.42910775]
[1752253008963,1.72946359,117550.0,117540.0,0.01799305]
[1752253009160,0.2508732,117530.0,117520.0,0.31952312]
[1752253009356,0.2508732,117530.0,117520.0,0.18973082]
[1752253009357,0.6683642,117530.0,117520.0,0.18973082]
[1752253009562,0.7320642,117530.0,117520.0,0.18973082]
[1752253010159,1.0928642,117530.0,117520.0,0.18973082]
[1752253011961,1.7028242,117530.0,117520.0,0.19073082]
[1752253012763,1.7028242,117530.0,117520.0,0.19373082]
[1752253014064,1.0928642,117530.0,117520.0,0.19373082]
[1752253014457,0.26684201,117530.0,117520.0,0.19294082]
[1752253014661,0.6683642,117530.0,117520.0,0.25604082]
[1752253015160,0.09674881,117530.0,117520.0,0.61822082]
[1752253015665,0.09674881,117530.0,117520.0,0.61684082]
[1752253016460,0.26684201,117530.0,117520.0,0.61584082]
[1752253016967,0.09674881,117530.0,117520.0,0.61584082]
[1752253017161,0.26684201,117530.0,117520.0,0.61722082]
[1752253017767,0.09674881,117530.0,117520.0,0.61722082]
[1752253017960,0.09674881,117530.0,117520.0,1.01874301]
[1752253018267,0.06378881,117530.0,117520.0,1.01874301]
[1752253019063,0.26684201,117530.0,117520.0,1.01874301]
[1752253020062,0.09674881,117530.0,117520.0,1.01874301]
[1752253020260,0.26684201,117530.0,117520.0,1.01874301]
[1752253020872,0.09674881,117530.0,117520.0,1.01874301]
[1752253021464,0.26684201,117530.0,117520.0,1.01874301]
[1752253021968,0.09674881,117530.0,117520.0,1.01874301]
[1752253022561,0.26684201,117530.0,117520.0,1.01874301]
[1752253023274,0.08078,117530.0,117520.0,1.01874301]
[1752253023470,0.08078,117530.0,117520.0,1.00490848]
[1752253030771,0.04782,117530.0,117520.0,1.00490848]
[1752253030971,0.0002,117530.0,117520.0,1.30500848]
[1752253031170,0.0002,117530.0,117520.0,0.90348629]
[1752253031369,0.04709,117530.0,117520.0,0.90348629]
[1752253031570,0.04709,117530.0,117520.0,1.30500848]
[1752253032078,0.04709,117530.0,117520.0,1.80500848]
[1752253032977,0.04709,117530.0,117520.0,1.80600848]
[1752253038171,0.04709,117530.0,117520.0,1.40448629]
[1752253038477,0.04709,117530.0,117520.0,1.80600848]
[1752253040378,0.08008,117530.0,117520.0,1.40448629]
[1752253041178,0.08008,117530.0,117520.0,0.90448629]
[1752253042082,0.08008,117530.0,117520.0,1.30600848]
[1752253042884,0.04709,117530.0,117520.0,1.30500848]
[1752253044178,0.65169539,117530.0,117520.0,0.90348629]
[1752253044375,0.48160219,117530.0,117520.0,0.90348629]
[1752253045085,0.08008,117530.0,117520.0,0.90348629]
[1752253045276,0.08008,117530.0,117520.0,0.8976977]
[1752253045483,0.08008,117530.0,117520.0,0.90764521]
[1752253046084,0.08208,117530.0,117520.0,0.90764521]
[1752253046784,0.48360219,117530.0,117520.0,0.90764521]
[1752253047480,0.65369539,117530.0,117520.0,0.90764521]
[1752253047682,0.48360219,117530.0,117520.0,0.90764521]
[1752253047885,0.65369539,117530.0,117520.0,0.87456521]
[1752253048075,0.68639539,117530.0,117520.0,0.87456521]
[1752253048775,0.68639539,117530.0,117520.0,0.60646521]
[1752253050282,0.7027781,117530.0,117520.0,0.54326521]
[1752253050486,0.7329781,117530.0,117520.0,0.18025521]
[1752253058483,1.3410181,117530.0,117520.0,0.18025521]
[1752253059784,0.7329781,117530.0,117520.0,0.18246521]
[1752253059987,0.6700781,117530.0,117520.0,0.60706521]
[1752253060488,0.09846271,117530.0,117520.0,1.0099674]
[1752253060683,0.06547271,117530.0,117520.0,1.0099674]
[1752253062895,0.23556591,117530.0,117520.0,1.0099674]
[1752253064593,0.06547271,117530.0,117520.0,1.0099674]
[1752253065097,0.06547271,117530.0,117520.0,1.0109674]
[1752253068393,0.23556591,117530.0,117520.0,1.0109674]
[1752253068600,0.26677591,117530.0,117520.0,1.0109674]
[1752253068799,0.26677591,117530.0,117520.0,0.60944521]
[1752253070102,0.26677591,117530.0,117520.0,0.60844521]
[1752253070500,0.37393438,117530.0,117520.0,0.60844521]
[1752253070902,0.26677591,117530.0,117520.0,0.60844521]
[1752253071405,0.37393438,117530.0,117520.0,0.60844521]
[1752253071802,0.77545657,117530.0,117520.0,0.60844521]
[1752253072003,0.77545657,117530.0,117520.0,1.82158521]
[1752253072202,0.77545657,117530.0,117520.0,0.60706521]
[1752253072406,0.77545657,117530.0,117520.0,0.82160521]